bitfinex/quotes_SOLUSD_20220227
["timestamp","ask_amount","ask_price","bid_price","bid_amount"]
[1645927082771,17.1681,87.43,87.367,2.74678921]
[1645927082966,17.1674,87.44,87.367,2.74678921]
[1645927083364,17.1674,87.44,87.368,27.86985127]
[1645927083565,17.1674,87.44,87.369,2.59934105]
[1645927083763,17.1674,87.44,87.369,5.34613026]
[1645927084167,17.1674,87.44,87.37,30.61664048]
[1645927084468,17.1674,87.44,87.371,5.55742269]
[1645927084665,17.1674,87.44,87.371,30.61664048]
[1645927084866,17.1674,87.44,87.372,114.2]
[1645927085070,17.1655,87.45,87.373,2.95040762]
[1645927085267,17.1655,87.45,87.373,5.69719683]
[1645927085467,4.575,87.469,87.381,114.2]
[1645927085668,45.9313,87.478,87.382,3.0592832]
[1645927085870,45.9313,87.478,87.384,114.2]
[1645927086067,45.9313,87.478,87.385,3.08863471]
[1645927086269,45.9313,87.478,87.39,16.46]
[1645927086469,45.9313,87.478,87.392,55.3529293]
[1645927086673,45.9313,87.478,87.393,2.45922968]
[1645927087073,17.1593,87.48,87.4,17.1617]
[1645927087272,40.33125052,87.499,87.411,114.2]
[1645927087478,4.573,87.505,87.413,116.96619046]
[1645927087673,23.176,87.506,87.414,2.58282016]
[1645927088271,17.1594,87.48,87.412,22.8957]
[1645927088670,17.1594,87.48,87.413,3.08586185]
[1645927090576,17.1594,87.48,87.414,2.36919304]
[1645927090773,17.1594,87.48,87.42,17.1589]
[1645927090975,17.1594,87.48,87.421,51.12851926]
[1645927091173,17.1594,87.48,87.421,48.35662537]
[1645927091379,17.1594,87.48,87.422,2.98782465]
[1645927091775,17.1575,87.49,87.422,2.98782465]
[1645927091975,17.1575,87.49,87.424,2.5782789]
[1645927092676,17.1555,87.5,87.424,2.5782789]
[1645927092877,17.1555,87.5,87.424,27.2560789]
[1645927093077,17.1555,87.5,87.425,2.71003405]
[1645927093676,17.1555,87.5,87.425,116.91003405]
[1645927093878,17.1532,87.51,87.426,2.74678921]
[1645927094079,4.573,87.516,87.424,24.6778]
[1645927094282,24.47656613,87.512,87.424,24.6778]
[1645927094481,5.94379755,87.511,87.424,24.6778]
[1645927094684,34.66368963,87.51,87.424,24.6778]
[1645927094981,6.23432703,87.509,87.424,24.6778]
[1645927095182,23.8676,87.508,87.424,24.6778]
[1645927095383,6.44239538,87.507,87.424,24.6778]
[1645927095587,17.1611,87.47,87.424,24.6778]
[1645927095984,1.52801792,87.469,87.421,48.35662537]
[1645927096182,12.57780662,87.483,87.421,48.35662537]
[1645927096183,1.40953735,87.482,87.421,48.35662537]
[1645927096384,4.573,87.481,87.421,48.35662537]
[1645927096583,17.166,87.45,87.421,48.35662537]
[1645927096984,28.0998,87.481,87.421,48.35662537]
[1645927097187,1.60514008,87.48,87.421,48.35662537]
[1645927097384,4.574,87.479,87.421,48.35662537]
[1645927097589,17.1669,87.44,87.421,48.35662537]
[1645927097785,17.1669,87.44,87.391,23.5136]
[1645927098686,17.1669,87.44,87.392,50.31564907]
[1645927099689,17.1686,87.43,87.392,50.31564907]
[1645927099986,23.1329,87.459,87.392,50.31564907]
[1645927100287,23.1329,87.459,87.393,22.6384]
[1645927103891,17.1649,87.45,87.393,22.6384]
[1645927104690,23.1329,87.459,87.393,22.6384]
[1645927104894,17.1663,87.44,87.393,22.6384]
[1645927106008,17.1651,87.45,87.393,22.6384]
[1645927107911,5.09983436,87.454,87.393,22.6384]
[1645927108110,5.09983436,87.454,87.36,16.46]
[1645927108310,4.575,87.453,87.361,23.0115]
[1645927109012,4.575,87.453,87.362,49.23610543]
[1645927109611,1.54001832,87.429,87.362,49.23610543]
[1645927110015,1.39270807,87.438,87.362,49.23610543]
[1645927111513,17.1724,87.42,87.362,49.23610543]
[1645927112518,1.5894225,87.419,87.352,23.8515]
[1645927112715,17.1771,87.41,87.321,24.4149]
[1645927112929,1.42369563,87.409,87.321,24.4149]
[1645927113124,6.2716996,87.408,87.321,24.4149]
[1645927113513,1.64734979,87.407,87.322,53.66350338]
[1645927113715,4.578,87.406,87.322,53.66350338]
[1645927114116,17.06365694,87.406,87.322,53.66350338]
[1645927114331,1.669801,87.405,87.322,53.66350338]
[1645927114516,4.578,87.404,87.322,53.66350338]
[1645927114715,6.44923753,87.404,87.322,53.66350338]
[1645927115517,30.92580366,87.404,87.322,53.66350338]
[1645927115724,1.41546749,87.403,87.322,53.66350338]
[1645927115918,4.578,87.402,87.322,53.66350338]
[1645927116919,114.2,87.399,87.311,23.0304]
[1645927117121,114.2,87.397,87.311,23.0304]
[1645927117420,1.66394562,87.396,87.311,23.0304]
[1645927117619,1.66394562,87.396,87.302,23.4881]
[1645927117620,6.13654276,87.395,87.302,23.4881]
[1645927117818,6.52737958,87.394,87.303,50.09172192]
[1645927118022,4.579,87.393,87.303,50.09172192]
[1645927118218,6.25339527,87.393,87.303,50.09172192]
[1645927118418,1.8250343,87.392,87.303,50.09172192]
[1645927119117,26.20989946,87.393,87.303,50.09172192]
[1645927119318,26.20989946,87.393,87.304,2.53445851]
[1645927119919,15.66479838,87.392,87.304,2.53445851]
[1645927120119,24.7299,87.391,87.304,2.53445851]
[1645927121120,4.579,87.39,87.304,2.53445851]
[1645927121921,1.68278995,87.39,87.304,2.53445851]
[1645927122122,4.579,87.389,87.304,2.53445851]
[1645927123323,1.60634767,87.386,87.283,2.84894011]
[1645927123522,4.58,87.385,87.283,2.84894011]
[1645927124323,23.78323279,87.384,87.285,1.89920756]
[1645927124524,6.26843518,87.383,87.284,47.9238743]
[1645927124923,1.76533994,87.381,87.284,47.9238743]
[1645927125124,4.58,87.38,87.284,47.9238743]
[1645927125326,1.71689906,87.378,87.284,47.9238743]
[1645927125527,4.58,87.377,87.284,47.9238743]
[1645927125925,4.58,87.377,87.27,17.1901]
[1645927125926,114.2,87.375,87.27,17.1901]
[1645927126129,114.2,87.373,87.25,26.24474872]
[1645927126324,6.29611276,87.374,87.25,26.24474872]
[1645927126325,114.2,87.359,87.25,26.24474872]
[1645927126525,1.54155428,87.358,87.25,26.24474872]
[1645927126727,4.581,87.357,87.251,2.76007874]
[1645927126926,42.14166189,87.356,87.252,46.78810598]
[1645927127128,6.33048863,87.355,87.253,3.09027709]
[1645927127525,1.62517077,87.354,87.253,3.09027709]
[1645927127729,114.2,87.349,87.252,46.78810598]
[1645927127934,120.52747336,87.348,87.252,46.78810598]
[1645927128132,1.63153684,87.347,87.252,46.78810598]
[1645927128327,6.23889916,87.346,87.252,46.78810598]
[1645927128526,28.36423279,87.346,87.252,46.78810598]
[1645927128727,1.46620622,87.345,87.252,46.78810598]
[1645927128928,115.7726834,87.339,87.25,23.934]
[1645927129127,4.582,87.338,87.22,17.1992]
[1645927129328,4.582,87.338,87.19,57.3319]
[1645927129329,114.2,87.337,87.19,16.46]
[1645927129530,114.2,87.329,87.194,2.89519635]
[1645927129728,1.73301085,87.318,87.194,2.89519635]
[1645927129928,16.46,87.31,87.217,56.95100773]
[1645927130129,114.2,87.308,87.194,2.89519635]
[1645927130329,114.2,87.299,87.194,2.89519635]
[1645927130534,114.2,87.289,87.185,23.8138]
[1645927130730,6.08568477,87.288,87.185,23.8138]
[1645927130928,6.08568477,87.288,87.186,3.05332182]
[1645927131131,38.42103563,87.287,87.187,55.40701024]
[1645927131329,38.42103563,87.287,87.188,2.48737736]
[1645927131533,4.585,87.286,87.188,2.48737736]
[1645927132330,4.585,87.286,87.189,2.74678921]
[1645927132529,4.585,87.286,87.188,2.48737736]
[1645927132931,23.78323279,87.285,87.188,2.48737736]
[1645927133134,16.46,87.28,87.188,2.48737736]
[1645927133333,4.585,87.279,87.188,2.48737736]
[1645927134133,6.39591932,87.279,87.188,2.48737736]
[1645927134535,17.2117,87.27,87.181,45.7928]
[1645927134733,4.585,87.269,87.154,47.2381]
[1645927134937,29.78704443,87.269,87.155,2.25540618]
[1645927135133,114.2,87.268,87.155,2.25540618]
[1645927135336,114.2,87.266,87.155,2.25540618]
[1645927135532,114.2,87.266,87.154,47.2381]
[1645927135533,114.2,87.264,87.147,59.30761413]
[1645927135736,1.56310227,87.238,87.136,2.35683494]
[1645927135937,16.46,87.23,87.136,2.35683494]
[1645927136234,6.0717123,87.229,87.136,2.35683494]
[1645927136638,8.82046062,87.228,87.138,3.10303958]
[1645927136936,8.82046062,87.228,87.128,46.7136]
[1645927136937,4.588,87.227,87.128,46.7136]
[1645927137136,32.24956461,87.227,87.128,46.7136]
[1645927137338,30.55214009,87.227,87.128,46.7136]
[1645927137537,40.05189054,87.226,87.128,46.7136]
[1645927137737,6.38044557,87.225,87.128,46.7136]
[1645927137942,16.46,87.21,87.129,49.63794998]
[1645927138138,16.46,87.21,87.13,2.77932036]
[1645927138740,6.01136154,87.227,87.13,19.99552036]
[1645927138938,6.01136154,87.227,87.13,17.2162]
[1645927139162,4.588,87.227,87.131,2.57852489]
[1645927139438,4.588,87.227,87.131,5.3253141]
[1645927139639,73.8572,87.23,87.131,5.3253141]
[1645927139839,73.8572,87.23,87.132,2.74678921]
[1645927141038,73.8572,87.23,87.141,2.32284542]
[1645927141239,73.8572,87.23,87.142,24.1013]
[1645927141440,73.8572,87.23,87.143,2.89667072]
[1645927142242,4.587,87.235,87.143,2.89667072]
[1645927142441,16.9017,87.236,87.143,2.89667072]
[1645927142847,16.9017,87.236,87.143,114.2]
[1645927143042,17.2172,87.24,87.15,17.2121]
[1645927143243,17.2172,87.24,87.144,2.74678921]
[1645927143548,17.2172,87.24,87.151,2.74678921]
[1645927143747,4.587,87.259,87.16,16.46]
[1645927143943,4.586,87.284,87.161,185.2655767]
[1645927144248,2.74678921,87.3,87.165,68.51]
[1645927144442,16.9704,87.319,87.201,114.2]
[1645927144642,24.71480466,87.317,87.211,114.2]
[1645927144844,45.16390594,87.316,87.213,57.28794061]
[1645927145243,24.71480466,87.315,87.22,17.1986]
[1645927145444,24.71480466,87.315,87.221,3.07947399]
[1645927145743,17.1986,87.31,87.221,3.07947399]
[1645927145943,17.1986,87.31,87.222,2.74678921]
[1645927146151,24.71480466,87.315,87.222,2.74678921]
[1645927146349,24.71480466,87.328,87.241,2.74716174]
[1645927146547,73.7699,87.35,87.241,114.2]
[1645927146548,4.582,87.349,87.241,114.2]
[1645927146770,24.71480466,87.348,87.242,2.82411881]
[1645927146969,4.582,87.347,87.242,2.82411881]
[1645927147371,57.3099,87.35,87.231,2.74678921]
[1645927147372,55.0,87.345,87.231,2.74678921]
[1645927147577,16.46,87.33,87.231,2.74678921]
[1645927147772,16.46,87.33,87.17,16.46]
[1645927147971,5.0,87.302,87.133,2.28741959]
[1645927148175,114.2,87.289,87.132,147.3893]
[1645927148370,17.2155,87.26,87.133,53.82289586]
[1645927148568,5.92818529,87.249,87.133,53.82289586]
[1645927148771,6.38151824,87.248,87.133,53.82289586]
[1645927148971,32.97479602,87.248,87.133,53.82289586]
[1645927149170,153.77190138,87.247,87.133,53.82289586]
[1645927149369,1.50450643,87.246,87.132,70.6647]
[1645927149578,1.72674302,87.245,87.132,70.6647]
[1645927149775,4.587,87.244,87.132,70.6647]
[1645927149975,16.46,87.23,87.132,23.3785]
[1645927150182,114.2,87.228,87.089,72.4318]
[1645927150372,16.46,87.23,87.089,72.4318]
[1645927150373,130.83716255,87.226,87.098,45.56369518]
[1645927150573,6.56234275,87.225,87.098,45.56369518]
[1645927150774,5.92818529,87.209,87.1,17.222]
[1645927150976,5.92818529,87.209,87.098,45.56369518]
[1645927150977,11.95604762,87.209,87.098,45.56369518]
[1645927151175,1.82843991,87.208,87.101,114.2]
[1645927151575,16.46,87.21,87.115,3.32052137]
[1645927151775,16.46,87.21,87.13,57.3692]
[1645927152174,16.46,87.21,87.116,52.48014568]
[1645927152380,16.46,87.21,87.117,45.88444178]
[1645927152574,16.46,87.21,87.118,2.87383236]
[1645927152774,16.46,87.21,87.118,2.9123732]
[1645927152974,16.46,87.21,87.13,17.2147]
[1645927153574,19.75113905,87.209,87.131,43.9235742]
[1645927153980,19.75113905,87.209,87.13,17.2165]
[1645927154178,6.24422339,87.208,87.115,0.57373216]
[1645927154584,114.2,87.207,87.115,0.57373216]
[1645927154779,6.35996305,87.206,87.115,0.57373216]
[1645927155383,6.35996305,87.206,87.105,24.5046]
[1645927155580,4.589,87.206,87.105,24.5046]
[1645927155878,205.76,87.19,87.039,24.0332]
[1645927156082,222.22,87.18,87.039,24.0332]
[1645927156277,16.46,87.17,87.04,43.93015699]
[1645927156480,1.96947143,87.169,87.04,43.93015699]
[1645927156879,1.96947143,87.169,87.041,28.78633939]
[1645927157081,4.591,87.168,87.042,2.73957384]
[1645927157280,1.58454539,87.159,87.043,116.6870184]
[1645927157481,17.2327,87.17,87.08,17.2233]
[1645927157482,1.59671402,87.168,87.08,17.2233]
[1645927157782,16.46,87.17,87.08,17.2233]
[1645927158186,18.15642283,87.169,87.08,17.2233]
[1645927158386,1.48554483,87.168,87.081,57.85237635]
[1645927158582,1.48554483,87.168,87.062,26.03955018]
[1645927158583,4.591,87.167,87.062,26.03955018]
[1645927158782,4.591,87.167,87.051,23.967]
[1645927158987,4.591,87.167,86.99,36.63015901]
[1645927158988,205.76,87.15,86.99,36.63015901]
[1645927159188,16.46,87.14,87.009,24.4558]
[1645927159484,16.46,87.14,86.95,205.76]
[1645927159485,12.0,87.015,86.883,70.8303764]
[1645927159685,2.48573607,86.969,86.84,17.2654]
[1645927159884,2.08068677,86.959,86.862,3.0]
[1645927160183,16.46,86.99,86.862,3.0]
[1645927160683,205.76,86.99,86.863,52.72437476]
[1645927160884,1.58454602,86.988,86.863,52.72437476]
[1645927161084,2.50727812,86.979,86.863,52.72437476]
[1645927161490,2.50727812,86.979,86.87,16.46]
[1645927161687,16.46,87.0,86.87,16.46]
[1645927161688,2.41982213,86.999,86.87,16.46]
[1645927161887,2.41982213,86.999,86.871,2.74678921]
[1645927162089,12.0,87.015,86.871,2.74678921]
[1645927162090,2.50122509,87.014,86.871,2.74678921]
[1645927162291,2.50122509,87.014,86.91,205.76]
[1645927162487,12.0,87.015,86.92,222.22]
[1645927162688,12.0,87.015,86.93,13.78]
[1645927162887,2.30739492,87.014,86.931,47.30621414]
[1645927163489,4.599,87.013,86.931,47.30621414]
[1645927163692,4.599,87.013,86.898,2.74678921]
[1645927163888,4.599,87.013,86.875,4.599]
[1645927164091,4.599,87.013,86.89,13.78]
[1645927164288,2.30739492,87.014,86.891,4.6]
[1645927164488,2.30739492,87.014,86.891,7.34678921]
[1645927164692,2.30739492,87.014,86.892,60.43218985]
[1645927164989,2.30739492,87.014,86.893,4.6]
[1645927165189,4.6,87.013,86.892,57.68540064]
[1645927165388,2.30739492,87.014,86.892,57.68540064]
[1645927165389,2.30739492,87.014,86.894,2.74678921]
[1645927165589,2.25963008,87.029,86.894,2.74678921]
[1645927165789,2.25963008,87.029,86.895,0.25]
[1645927165991,17.2523,87.06,86.895,0.25]
[1645927166191,6.67568825,87.059,86.9,172.29]
[1645927166390,6.95738545,87.079,86.91,186.07]
[1645927166594,6.95738545,87.079,86.912,53.91436086]
[1645927166791,6.95738545,87.079,86.913,4.847]
[1645927167191,6.95738545,87.079,86.92,13.78]
[1645927167390,6.95738545,87.079,86.921,4.847]
[1645927167596,6.95738545,87.079,86.93,17.2463]
[1645927167793,6.95738545,87.079,86.94,13.78]
[1645927168193,2.35938545,87.079,86.941,7.59378921]
[1645927168393,1.91233253,87.089,86.941,7.34378921]
[1645927168693,17.2478,87.09,86.941,7.34378921]
[1645927168694,2.01616113,87.082,86.941,7.34378921]
[1645927168892,4.597,87.081,86.942,2.74678921]
[1645927169198,4.597,87.081,86.943,4.597]
[1645927169494,4.597,87.088,86.952,114.2]
[1645927169693,2.54027284,87.089,86.963,114.2]
[1645927169892,2.54027284,87.089,86.964,4.596]
[1645927170092,2.54027284,87.089,86.965,114.2]
[1645927170292,4.596,87.107,86.964,6.34278921]
[1645927170293,7.00331216,87.107,86.983,114.2]
[1645927170497,2.40731216,87.107,86.991,114.2]
[1645927170693,2.40731216,87.107,86.99,13.78]
[1645927170995,4.595,87.106,86.99,13.78]
[1645927171596,4.595,87.106,86.982,50.61607702]
[1645927171897,4.595,87.106,86.982,49.61607702]
[1645927172093,114.2,87.099,86.982,49.61607702]
[1645927172294,6.72479263,87.098,86.982,49.61607702]
[1645927172493,34.42812126,87.098,86.982,49.61607702]
[1645927172696,30.1747724,87.097,86.982,49.61607702]
[1645927172920,120.94845793,87.096,86.982,49.61607702]
[1645927173098,2.14028717,87.095,86.982,49.61607702]
[1645927173299,13.78,87.08,86.982,49.61607702]
[1645927173495,6.7877878,87.079,86.982,49.61607702]
[1645927173995,23.81667437,87.078,86.982,49.61607702]
[1645927174197,6.52266334,87.077,86.982,49.61607702]
[1645927174596,1.92666334,87.077,86.982,49.61607702]
[1645927174802,1.92666334,87.077,86.789,271.9883609]
[1645927174803,49.61607702,86.982,86.789,271.9883609]
[1645927174996,2.74,86.801,86.789,128.89664254]
[1645927175199,2.74,86.801,86.739,16.9365]
[1645927175397,13.78,86.8,86.584,1.22]
[1645927175598,2.74678921,86.713,86.452,72.0455]
[1645927175898,186.07,86.7,86.54,48.68373667]
[1645927176097,172.29,86.67,86.54,48.68373667]
[1645927176298,2.46892338,86.659,86.45,5.00000087]
[1645927176497,5.81,86.62,86.513,5.00104959]
[1645927176700,172.29,86.59,86.45,5.00000087]
[1645927176901,13.78,86.58,86.45,5.00000087]
[1645927177099,2.68539501,86.579,86.466,2.74678921]
[1645927177301,2.68539501,86.579,86.501,55.27855371]
[1645927177500,13.78,86.58,86.45,5.00000087]
[1645927177501,2.68539501,86.58,86.45,5.00000087]
[1645927177902,172.29,86.55,86.45,5.00000087]
[1645927178100,13.78,86.54,86.45,5.00000087]
[1645927178301,13.78,86.53,86.268,17.3373]
[1645927178500,0.81,86.52,86.307,47.93564089]
[1645927178700,2.34786588,86.469,86.307,37.93564089]
[1645927178904,172.29,86.44,86.307,37.93564089]
[1645927179103,2.08186143,86.459,86.307,37.93564089]
[1645927179302,2.08186143,86.459,86.308,4.53381]
[1645927179508,13.78,86.45,86.307,36.93564089]
[1645927179708,13.78,86.44,86.307,36.93564089]
[1645927179906,172.29,86.48,86.307,36.93564089]
[1645927180103,172.29,86.51,86.307,36.93564089]
[1645927180305,13.78,86.5,86.309,4.53376]
[1645927180503,1.96577345,86.509,86.309,4.53376]
[1645927180705,4.628,86.569,86.309,4.53376]
[1645927180706,2.30879038,86.519,86.32,13.78]
[1645927181004,172.29,86.61,86.32,13.78]
[1645927181005,2.37448868,86.559,86.34,172.29]
[1645927181205,2.37448868,86.559,86.333,52.01793036]
[1645927181206,4.626,86.558,86.35,176.8216]
[1645927181402,4.626,86.558,86.394,2.1]
[1645927181604,2.23382367,86.569,86.395,47.13724473]
[1645927181803,2.34510061,86.579,86.434,2.1]
[1645927182009,4.623,86.578,86.435,53.87601681]
[1645927182205,4.623,86.598,86.435,53.87601681]
[1645927182606,4.623,86.598,86.435,56.62280602]
[1645927182806,4.623,86.598,86.436,2.74678921]
[1645927183007,4.623,86.598,86.437,0.25]
[1645927183506,2.74,86.597,86.438,2.74678921]
[1645927183707,2.74,86.597,86.439,0.25]
[1645927183906,4.623,86.596,86.439,0.25]
[1645927184108,2.11304115,86.599,86.439,0.25]
[1645927184312,4.623,86.598,86.44,2.74678921]
[1645927184512,4.623,86.598,86.444,2.1]
[1645927184708,2.11304115,86.599,86.445,0.25]
[1645927184909,2.11304115,86.599,86.454,2.1]
[1645927185109,2.11304115,86.599,86.465,55.95807651]
[1645927185309,13.78,86.62,86.47,13.78]
[1645927185516,4.121,86.646,86.494,2.1]
[1645927185709,1.48843266,86.647,86.495,0.25]
[1645927185909,1.48843266,86.647,86.485,55.22493021]
[1645927186109,21.37719918,86.646,86.485,55.22493021]
[1645927186308,1.846964,86.645,86.485,55.22493021]
[1645927186509,13.78,86.63,86.485,55.22493021]
[1645927186709,6.55809804,86.629,86.485,55.22493021]
[1645927186910,1.93709804,86.629,86.485,55.22493021]
[1645927187510,44.22918096,86.628,86.485,55.22493021]
[1645927187711,1.47549762,86.609,86.485,55.22493021]
[1645927187942,1.99166086,86.599,86.485,55.22493021]
[1645927188137,13.78,86.59,86.485,55.22493021]
[1645927188336,172.29,86.58,86.485,55.22493021]
[1645927188537,13.78,86.57,86.485,55.22493021]
[1645927188834,6.17018331,86.569,86.485,55.22493021]
[1645927189035,8.91697252,86.569,86.485,55.22493021]
[1645927189234,2.74,86.568,86.485,55.22493021]
[1645927189436,4.622,86.567,86.485,55.22493021]
[1645927189934,1.54818331,86.569,86.485,55.22493021]
[1645927189935,4.622,86.568,86.485,55.22493021]
[1645927190334,1.54818331,86.569,86.485,55.22493021]
[1645927190535,13.78,86.59,86.485,63.81493021]
[1645927190733,173.49000001,86.65,86.485,63.81493021]
[1645927190734,1.65681288,86.589,86.485,63.81493021]
[1645927190935,1.7460839,86.599,86.485,63.81493021]
[1645927191135,13.78,86.61,86.485,63.81493021]
[1645927191336,1.54205055,86.609,86.485,63.81493021]
[1645927191535,1.54205055,86.609,86.486,2.99678921]
[1645927191936,1.54205055,86.609,86.487,2.74678921]
[1645927192136,6.36926726,86.629,86.488,0.25]
[1645927192342,1.74826726,86.629,86.488,0.25]
[1645927192636,1.61844726,86.646,86.515,48.26666785]
[1645927194037,4.619,86.645,86.515,48.26666785]
[1645927194242,1.61844726,86.646,86.515,48.26666785]
[1645927195341,4.619,86.645,86.515,48.26666785]
[1645927195538,2.74678921,86.645,86.515,48.26666785]
[1645927195742,1.61844726,86.646,86.516,4.77291]
[1645927195940,1.61844726,86.646,86.52,13.78]
[1645927196140,1.61844726,86.646,86.521,0.25]
[1645927196539,1.61844726,86.646,86.521,27.43859122]
[1645927196739,13.78,86.64,86.515,48.26666785]
[1645927196942,1.93760386,86.639,86.515,48.26666785]
[1645927197340,4.62,86.638,86.515,48.26666785]
[1645927197542,27.65386241,86.638,86.515,48.26666785]
[1645927197739,1.59146486,86.637,86.515,48.26666785]
[1645927198144,4.62,86.646,86.515,48.26666785]
[1645927198145,4.62,86.636,86.515,48.26666785]
[1645927198341,13.78,86.64,86.515,48.26666785]
[1645927198540,6.12004641,86.639,86.515,48.26666785]
[1645927198941,1.50004641,86.639,86.516,2.86532627]
[1645927199145,1.49696434,86.646,86.52,13.78]
[1645927199340,1.49696434,86.646,86.521,0.25]
[1645927199841,1.49696434,86.646,86.522,4.619]
[1645927200043,1.49696434,86.646,86.523,0.25]
[1645927200241,4.619,86.645,86.523,0.25]
[1645927200641,13.78,86.64,86.49,18.399]
[1645927200843,6.42603966,86.639,86.472,4.62]
[1645927201242,20.08664845,86.638,86.435,4.62]
[1645927201442,114.2,86.636,86.42,13.78]
[1645927201644,114.2,86.629,86.421,4.622]
[1645927201843,114.2,86.599,86.398,2.74678921]
[1645927202043,13.78,86.59,86.398,2.74678921]
[1645927202245,6.62490581,86.589,86.4,13.78]
[1645927202446,6.62490581,86.589,86.402,50.57169635]
[1645927202654,4.624,86.589,86.403,4.624]
[1645927202849,1.93766229,86.608,86.403,4.624]
[1645927203049,363.15688916,86.552,86.403,39.57220043]
[1645927203247,1.58439173,86.551,86.415,50.5366681]
[1645927203445,1.58439173,86.551,86.416,9.15314]
[1645927203644,1.58439173,86.551,86.416,11.89992921]
[1645927203845,1.58439173,86.551,86.42,13.78]
[1645927204043,1.58439173,86.551,86.421,9.40288]
[1645927204244,1.58439173,86.551,86.421,12.14966921]
[1645927204649,1.58439173,86.551,86.422,2.74678921]
[1645927205046,1.53621277,86.549,86.421,4.52788]
[1645927205350,13.78,86.54,86.415,50.5366681]
[1645927205547,1.69838315,86.539,86.415,50.5366681]
[1645927205945,4.625,86.539,86.415,50.5366681]
[1645927206146,13.78,86.55,86.415,50.5366681]
[1645927206347,1.49683947,86.549,86.416,4.625]
[1645927206747,4.625,86.548,86.416,4.625]
[1645927207148,114.2,86.526,86.416,4.625]
[1645927207347,114.2,86.519,86.415,50.5366681]
[1645927207548,1.92700305,86.518,86.415,50.5366681]
[1645927208149,2.74678921,86.517,86.415,50.5366681]
[1645927208549,4.626,86.516,86.415,50.5366681]
[1645927208747,4.626,86.516,86.415,49.73756767]
[1645927209148,4.626,86.517,86.415,49.73756767]
[1645927209751,1.92700305,86.518,86.415,49.73756767]
[1645927209951,2.74678921,86.516,86.415,49.73756767]
[1645927210250,2.74678921,86.516,86.357,23.3113]
[1645927210454,114.2,86.514,86.357,23.3113]
[1645927210658,114.2,86.499,86.357,23.3113]
[1645927210851,1.69555364,86.498,86.357,23.3113]
[1645927211253,1.69555364,86.498,86.358,58.25167672]
[1645927211452,4.628,86.497,86.358,58.25167672]
[1645927211652,1.69555364,86.498,86.358,58.25167672]
[1645927211851,253.57161372,86.48,86.358,58.25167672]
[1645927212054,1.980793,86.479,86.358,58.25167672]
[1645927212650,4.628,86.478,86.358,58.25167672]
[1645927213256,1.980793,86.479,86.358,58.25167672]
[1645927213852,2.74678921,86.478,86.358,58.25167672]
[1645927214259,1.980793,86.479,86.358,58.25167672]
[1645927214460,2.74678921,86.478,86.358,58.25167672]
[1645927214658,1.77941658,86.475,86.357,23.3113]
[1645927214858,1.88865726,86.458,86.27,13.78]
[1645927215062,1.64290475,86.449,86.28,13.78]
[1645927215260,4.63,86.448,86.28,13.78]
[1645927215663,4.63,86.448,86.307,60.92466426]
[1645927215862,1.82835122,86.449,86.307,60.92466426]
[1645927216059,1.82835122,86.449,86.308,0.25]
[1645927216262,1.82835122,86.449,86.31,13.78]
[1645927216461,4.63,86.467,86.311,114.45]
[1645927216662,1.8772684,86.469,86.311,114.45]
[1645927216861,1.8772684,86.469,86.326,114.2]
[1645927217062,253.57161372,86.48,86.345,114.2]
[1645927217264,4.628,86.534,86.365,59.63115095]
[1645927217462,13.78,86.55,86.374,2.1]
[1645927217668,1.77323552,86.549,86.375,0.25]
[1645927217863,1.77323552,86.549,86.391,43.51993919]
[1645927218066,13.78,86.54,86.391,43.51993919]
[1645927218267,1.52408771,86.539,86.4,17.3522]
[1645927218463,13.78,86.53,86.4,17.3522]
[1645927218664,4.626,86.513,86.4,17.3522]
[1645927218862,13.78,86.54,86.401,114.2]
[1645927219064,1.42186298,86.547,86.402,4.876]
[1645927219275,283.65735097,86.539,86.402,4.876]
[1645927219563,283.65735097,86.539,86.402,4.626]
[1645927219564,1.86918527,86.538,86.402,4.626]
[1645927219764,1.86918527,86.538,86.403,0.25]